bitfinex/quotes_ETHUSD_20250220
["timestamp","ask_amount","ask_price","bid_price","bid_amount"]
[1740047409101,11.10670564,2742.9,2742.4,3.64634]
[1740047409601,9.71115,2742.9,2742.4,3.64634]
[1740047409763,9.71115,2742.9,2742.4,3.6828006]
[1740047409958,6.0653,2742.9,2742.3,0.7662]
[1740047410178,6.0653,2742.9,2742.5,3.64622]
[1740047410358,9.71108,2742.9,2742.3,4.41265]
[1740047410565,7.46084864,2742.9,2742.3,4.41265]
[1740047410766,7.46084864,2742.9,2742.4,0.72055422]
[1740047410767,3.64591,2742.8,2742.4,0.72055422]
[1740047411105,3.64591,2742.8,2742.5,3.43034005]
[1740047411312,3.64611,2742.7,2742.5,3.43034005]
[1740047411664,3.64591,2742.8,2742.5,3.43034005]
[1740047411986,5.12115886,2742.8,2742.5,3.43034005]
[1740047416085,1.47524886,2742.8,2742.5,3.43034005]
[1740047416300,4.47115,2742.9,2742.5,3.43034005]
[1740047416523,0.8139,2743.1,2742.8,7.07618005]
[1740047416714,5.24,2743.2,2742.9,3.64574]
[1740047416913,5.24,2743.2,2743.1,3.43034005]
[1740047417617,5.24,2743.2,2743.1,3.4655271]
[1740047418148,0.005,2743.4,2743.3,3.64524]
[1740047418353,0.005,2743.4,2743.3,4.44714]
[1740047418555,0.005,2743.4,2743.3,4.48190218]
[1740047419202,0.005,2743.4,2743.3,4.70614]
[1740047419936,0.005,2743.4,2743.3,0.8019]
[1740047420269,0.005,2743.4,2743.3,0.26]
[1740047420455,0.38515581,2743.4,2743.3,0.26]
[1740047420655,1.17185581,2743.4,2743.3,0.26]
[1740047420853,1.17185581,2743.4,2743.1,3.43034005]
[1740047421058,1.17185581,2743.4,2743.2,0.26]
[1740047421059,0.7917,2743.4,2743.2,0.26]
[1740047422380,3.64524,2743.3,2743.2,0.26]
[1740047423125,3.64524,2743.3,2743.0,0.74702464]
[1740047425480,3.64538,2743.2,2743.0,0.74702464]
[1740047425859,3.64524,2743.3,2742.9,4.74774445]
[1740047425860,3.64551,2743.1,2742.9,4.74774445]
[1740047427579,3.64564,2743.0,2742.9,4.74774445]
[1740047428850,4.47144,2743.0,2742.9,4.74774445]
[1740047429254,4.47144,2743.0,2742.9,4.78211209]
[1740047431173,7.2911,2743.1,2742.9,4.78211209]
[1740047431379,8.6683794,2743.1,2742.9,4.78211209]
[1740047431951,3.64564,2743.0,2742.9,4.78211209]
[1740047433073,0.443694,2743.2,2742.9,8.42780209]
[1740047433272,5.24,2743.3,2742.9,4.78211209]
[1740047433476,3.64537,2743.2,2742.9,4.78211209]
[1740047433777,0.005,2743.4,2743.3,4.41254]
[1740047433935,0.005,2743.4,2743.3,4.67354]
[1740047434274,0.005,2743.4,2743.3,0.2952572]
[1740047435732,0.005,2743.4,2743.3,3.9404972]
[1740047435969,0.005,2743.4,2743.3,5.0785666]
[1740047436176,0.005,2743.4,2743.3,5.82661792]
[1740047438177,0.005,2743.4,2743.3,4.4639972]
[1740047438471,0.005,2743.4,2743.3,8.15533725]
[1740047440278,5.24,2745.0,2743.5,4.45347]
[1740047440446,1.16032838,2745.5,2743.5,4.45347]
[1740047440447,3.64274,2745.2,2744.6,4.45192]
[1740047440647,8.88274,2745.2,2744.7,0.262]
[1740047440850,0.7597,2744.9,2744.0,8.192]
[1740047441062,0.7597,2744.5,2744.0,8.192]
[1740047441266,0.364274,2745.1,2744.0,8.192]
[1740047441267,9.64244,2745.2,2744.2,0.757]
[1740047441454,3.64298,2745.0,2744.5,3.64363]
[1740047441667,3.64298,2745.0,2744.5,3.90763]
[1740047441850,3.64298,2745.0,2744.5,0.264]
[1740047442067,3.67989633,2745.0,2744.5,0.264]
[1740047442280,3.64333,2744.8,2744.5,0.264]
[1740047442471,4.37565263,2744.8,2744.5,0.264]
[1740047442886,3.6436,2744.6,2744.2,0.757]
[1740047443085,3.6436,2744.6,2744.2,0.264]
[1740047443290,3.64368,2744.5,2744.2,0.264]
[1740047443487,4.40319,2744.7,2744.2,0.264]
[1740047443794,5.73184,2744.7,2744.2,0.264]
[1740047444087,3.68051633,2744.6,2744.2,0.264]
[1740047444254,3.6436,2744.6,2744.2,0.264]
[1740047444449,3.64381,2744.4,2744.2,0.264]
[1740047444650,3.64391,2744.3,2744.2,0.264]
[1740047444856,4.372682,2744.3,2744.2,0.264]
[1740047446956,0.728772,2744.3,2744.2,0.264]
[1740047447288,3.64381,2744.4,2744.2,0.264]
[1740047447993,3.64366,2744.5,2744.2,0.264]
[1740047448163,8.88357,2744.6,2744.2,0.264]
[1740047448374,3.64391,2744.3,2744.2,0.264]
[1740047448596,3.64387,2744.4,2744.2,0.264]
[1740047449181,8.8836,2744.6,2744.2,0.264]
[1740047449363,8.8836,2744.6,2744.2,1.027]
[1740047449556,3.64365,2744.5,2744.2,1.027]
[1740047450266,9.980795,2744.6,2744.2,1.027]
[1740047451202,5.24,2744.6,2744.2,1.027]
[1740047452088,8.88352,2744.6,2744.2,1.027]
[1740047452464,5.24,2744.6,2744.2,4.67104]
[1740047452667,5.24,2744.6,2744.2,1.027]
[1740047452865,8.88353,2744.6,2744.2,1.027]
[1740047453567,3.64326,2744.8,2744.5,0.8279]
[1740047454111,5.24,2745.0,2744.2,0.8279]
[1740047454269,5.24,2745.0,2744.4,0.264]
[1740047454468,3.64366,2744.5,2744.4,0.264]
[1740047454666,3.64347,2744.7,2744.4,0.264]
[1740047455321,3.64347,2744.7,2744.3,0.264]
[1740047455810,3.64373,2744.5,2744.3,0.264]
[1740047455993,3.64373,2744.5,2744.2,1.0919]
[1740047457410,3.64346,2744.7,2744.2,1.0919]
[1740047458220,7.28695,2744.7,2744.2,1.0919]
[1740047458423,3.64346,2744.7,2744.2,1.0919]
[1740047459008,3.64346,2744.7,2744.2,4.73593]
[1740047459206,7.28694,2744.7,2744.2,4.73593]
[1740047459614,7.28694,2744.7,2744.2,1.0919]
[1740047459615,3.64352,2744.6,2744.2,1.0919]
[1740047459995,3.64346,2744.7,2744.2,1.0919]
[1740047460195,3.64346,2744.7,2744.2,4.73594]
[1740047460808,5.24,2745.0,2744.6,3.64343]
[1740047461119,4.41271,2745.3,2744.8,0.7792]
[1740047461319,3.64302,2745.0,2744.5,0.7792]
[1740047461979,3.64292,2745.1,2744.5,0.7792]
[1740047462288,4.41275,2745.3,2744.5,1.221489]
[1740047462625,7.28532,2745.3,2744.7,3.64329]
[1740047462992,3.64265,2745.3,2744.8,0.7606]
[1740047463177,3.64243,2745.5,2744.8,4.40373]
[1740047463378,3.64249,2745.4,2744.8,4.40373]
[1740047463728,3.64243,2745.5,2744.9,3.64309]
[1740047464080,3.64242,2745.5,2744.9,3.64309]
[1740047464281,7.28482,2745.5,2744.9,3.64309]
[1740047464579,3.6424,2745.5,2744.9,3.64309]
[1740047464789,7.2848,2745.5,2744.9,3.64309]
[1740047464990,7.28485,2745.5,2744.9,3.64309]
[1740047465221,3.6424,2745.5,2744.8,5.208452]
[1740047465428,3.6426,2745.3,2744.8,5.208452]
[1740047465634,3.6424,2745.5,2744.8,5.208442]
[1740047465834,3.6424,2745.5,2744.9,3.64309]
[1740047466017,3.6424,2745.5,2744.9,3.64311]
[1740047466216,3.6424,2745.5,2744.9,4.5282652]
[1740047466397,3.6424,2745.5,2745.0,3.64297]
[1740047466830,5.24,2745.6,2745.0,0.265]
[1740047467125,5.24,2745.6,2745.2,0.8164]
[1740047467281,3.64225,2745.6,2745.2,0.8164]
[1740047467485,5.24,2746.0,2745.2,0.8164]
[1740047467486,5.24,2746.0,2745.5,3.64224]
[1740047468130,5.24,2746.0,2745.6,0.8164]
[1740047468341,0.1515681,2746.3,2745.7,0.266]
[1740047468686,3.82977443,2746.3,2745.7,0.266]
[1740047469048,0.1015681,2746.3,2745.7,1.97326838]
[1740047469233,0.1015681,2746.3,2746.2,4.45779]
[1740047471639,0.1015681,2746.3,2746.2,0.8164]
[1740047471791,0.1015681,2746.3,2746.2,1.0844]
[1740047472388,0.1015681,2746.3,2746.2,0.268]
[1740047472855,0.1015681,2746.3,2746.2,0.658957]
[1740047472995,0.1015681,2746.3,2746.2,0.390957]
[1740047473191,0.1015681,2746.3,2746.2,0.658957]
[1740047473648,0.1015681,2746.3,2746.2,4.300347]
[1740047474047,0.1015681,2746.3,2746.2,5.115847]
[1740047477957,0.1015681,2746.3,2746.2,13.299847]
[1740047479593,0.1015681,2746.3,2746.2,13.031847]
[1740047479776,0.1015681,2746.3,2746.2,13.299847]
[1740047479980,0.1015681,2746.3,2746.2,12.484347]
[1740047480980,0.1015681,2746.3,2746.2,8.842957]
[1740047482171,0.1015681,2746.3,2745.9,0.7873]
[1740047482373,0.1015681,2746.3,2746.0,0.268]
[1740047483089,3.7428381,2746.3,2746.0,0.268]
[1740047483382,0.1015681,2746.3,2746.0,0.268]
[1740047485151,3.7428381,2746.3,2746.0,0.268]
[1740047485352,0.1015681,2746.3,2746.0,0.268]
[1740047485661,0.1015681,2746.3,2746.0,0.658985]
[1740047487788,0.1015681,2746.3,2746.0,4.300625]
[1740047488373,0.1015681,2746.3,2746.0,0.658985]
[1740047490863,0.1015681,2746.3,2746.0,0.268]
[1740047491063,3.7428681,2746.3,2746.0,0.268]
[1740047492065,0.1015681,2746.3,2746.0,0.268]
[1740047492261,3.64144,2746.2,2745.7,2.53226838]
[1740047492500,3.6416,2746.1,2745.7,1.70726838]
[1740047492697,7.28322,2746.1,2745.7,1.70726838]
[1740047492904,0.8174,2746.2,2745.7,1.70726838]
[1740047493198,3.64152,2746.1,2745.6,8.45]
[1740047493399,7.28315,2746.1,2745.6,8.45]
[1740047493574,3.64166,2746.0,2745.6,8.45]
[1740047493983,3.64152,2746.1,2745.6,8.45]
[1740047494511,3.64186,2745.9,2745.6,8.45]
[1740047494665,3.64199,2745.8,2745.6,8.183]
[1740047494865,3.64186,2745.9,2745.6,8.183]
[1740047495162,0.03691633,2745.8,2745.6,8.183]
[1740047495371,4.41385,2745.7,2745.6,8.183]
[1740047496275,0.7718,2745.7,2745.6,8.183]
[1740047498108,5.24,2746.1,2745.7,0.7849]
[1740047498315,5.24,2746.1,2745.7,4.42684]
[1740047498515,5.24,2746.1,2745.6,9.62094217]
[1740047498813,3.64168,2746.0,2745.6,9.62094217]
[1740047499000,3.64168,2746.0,2745.6,1.43794217]
[1740047499200,3.64143,2746.2,2745.6,1.43794217]
[1740047499516,3.64153,2746.1,2745.5,12.85385167]
[1740047499812,3.64153,2746.1,2745.5,9.21160167]
[1740047500018,3.64139,2746.2,2745.6,3.6421]
[1740047500220,7.28286,2746.2,2745.6,3.6421]
[1740047500418,0.8624681,2746.3,2745.5,5.56938167]
[1740047500715,0.1015681,2746.3,2746.1,3.64151]
[1740047501420,0.1015681,2746.3,2746.2,3.94480015]
[1740047501804,0.1015681,2746.3,2746.2,3.90839]
[1740047502480,0.1015681,2746.3,2746.2,0.267]
[1740047502829,0.1015681,2746.3,2746.2,3.90839]
[1740047503031,0.1015681,2746.3,2746.2,1.021984]
[1740047505712,0.1015681,2746.3,2746.2,0.267]
[1740047508089,0.9263681,2746.3,2746.2,0.267]
[1740047508711,4.5676381,2746.3,2745.8,3.6419]
[1740047508913,3.64152,2746.2,2745.9,0.266]
[1740047509601,3.64139,2746.2,2745.9,0.266]
[1740047509803,3.64153,2746.1,2745.9,0.266]
[1740047510022,3.64145,2746.2,2745.9,0.266]
[1740047510531,3.64147,2746.2,2745.9,0.266]
[1740047511016,3.64153,2746.1,2745.9,0.266]
[1740047511204,3.6414,2746.2,2745.9,0.266]
[1740047512810,8.2090081,2746.3,2745.9,0.266]
[1740047513129,3.64146,2746.2,2745.9,0.266]
[1740047514325,0.9263681,2746.3,2745.7,2.75787499]
[1740047514527,0.9263681,2746.3,2745.7,0.266]
[1740047514528,3.64174,2746.0,2745.7,0.266]
[1740047514830,3.64166,2746.0,2745.7,0.266]
[1740047515590,3.64153,2746.1,2745.7,0.266]
[1740047516105,7.28313,2746.1,2745.7,0.266]
[1740047516423,3.64153,2746.1,2745.7,0.266]
[1740047517027,7.28314,2746.1,2745.7,0.266]
[1740047517327,3.64153,2746.1,2745.7,0.266]
[1740047520147,3.64146,2746.2,2745.7,0.266]
[1740047520339,3.64155,2746.1,2745.7,0.266]
[1740047529465,0.9263681,2746.3,2746.0,3.64157]
[1740047529644,0.9263681,2746.3,2745.8,4.40866]
[1740047529843,4.5676581,2746.3,2745.8,4.40866]
[1740047530163,8.2090181,2746.3,2745.8,4.40866]
[1740047530567,4.5676581,2746.3,2745.8,4.40866]
[1740047530868,8.2090281,2746.3,2745.8,4.40866]
[1740047531023,4.5676581,2746.3,2745.8,4.40866]
[1740047531228,8.2090281,2746.3,2745.8,4.40866]
[1740047531660,4.5676581,2746.3,2745.8,4.40866]
[1740047531960,0.1015681,2746.3,2745.9,3.64174]
[1740047532167,3.7429281,2746.3,2745.8,4.9780837]
[1740047533387,0.03691633,2746.2,2745.8,0.7668]
[1740047533683,3.64153,2746.1,2745.7,0.266]
[1740047533981,4.45330633,2746.2,2745.7,3.90804]
[1740047534181,3.64155,2746.1,2745.7,3.90804]
[1740047534385,3.64155,2746.1,2745.7,0.266]
[1740047535055,0.03691633,2746.0,2745.7,0.266]
[1740047535587,0.48226296,2746.0,2745.5,5.56938167]
[1740047535799,4.44399,2745.6,2745.5,5.56938167]
[1740047535969,4.48090633,2745.6,2745.5,5.56938167]
[1740047536304,13.15124638,2745.6,2745.5,5.56938167]
[1740047536454,13.11433005,2745.6,2745.5,5.56938167]
[1740047536776,14.78996806,2745.6,2745.5,5.56938167]
[1740047536965,4.44475,2745.1,2744.5,0.7758]
[1740047537288,8.08773,2745.1,2744.5,4.41943]
[1740047537491,4.4447,2745.1,2744.5,5.32370741]
[1740047537986,0.8018,2745.1,2744.6,3.6434]
[1740047538352,0.8018,2745.1,2744.5,5.32363741]
[1740047538890,0.8018,2745.1,2744.6,3.64351]
[1740047539088,5.24,2745.5,2744.9,3.64305]
[1740047539089,9.68413,2745.5,2744.9,3.64305]
[1740047540086,6.0417,2745.5,2745.0,3.64296]
[1740047541294,9.68403,2745.5,2745.0,3.64296]
[1740047543595,6.0417,2745.5,2745.0,3.64296]
[1740047543784,6.0417,2745.5,2745.0,3.64291]
[1740047543982,6.0417,2745.5,2745.2,3.64269]
[1740047544291,6.0417,2745.5,2745.0,8.11811]
[1740047544497,6.0417,2745.5,2745.1,3.64283]
[1740047545592,6.0417,2745.5,2745.2,3.6426]
[1740047545803,6.0417,2745.5,2745.0,8.11817]
[1740047546004,6.0417,2745.5,2745.0,8.929987]
[1740047546309,5.24,2745.5,2745.0,8.929987]
[1740047547002,5.24,2745.5,2745.1,3.6428]
[1740047547307,8.88232,2745.5,2745.0,0.8323]
[1740047547603,5.24,2745.5,2745.0,4.47525]
[1740047547906,8.91932633,2745.5,2745.0,4.47525]
[1740047548125,5.24,2745.5,2745.0,4.47521]
[1740047548578,5.24,2745.5,2745.1,3.64285]
[1740047549412,8.88219,2745.6,2745.1,3.64285]
[1740047550418,12.52448,2745.6,2745.1,3.64285]
[1740047550716,8.88219,2745.6,2745.1,3.64285]
[1740047551009,13.489819,2745.6,2745.1,3.64285]
[1740047551211,0.7948,2745.5,2745.1,3.64285]
[1740047553223,4.43712,2745.5,2744.9,7.28609]
[1740047553541,4.43712,2745.5,2745.0,3.64297]
[1740047555181,0.03691633,2745.4,2745.0,3.64297]
[1740047555381,4.43712,2745.5,2745.0,3.64297]
[1740047556323,0.7948,2745.5,2745.1,3.64279]
[1740047556714,4.43713,2745.5,2745.1,3.64279]
[1740047557220,4.43713,2745.5,2744.8,5.14694873]
[1740047557397,4.43713,2745.5,2745.0,3.64292]
[1740047557593,4.43713,2745.5,2745.0,7.28579]
[1740047557828,0.7948,2745.5,2745.1,3.64283]
[1740047558039,4.43713,2745.5,2745.1,3.64283]
[1740047558201,4.43713,2745.5,2745.0,3.64291]
[1740047559930,0.7948,2745.5,2745.1,3.64272]
[1740047563520,0.7948,2745.5,2744.9,4.15769487]
[1740047563845,0.7948,2745.5,2745.0,3.64296]
[1740047564356,4.43716,2745.5,2745.0,3.64296]
[1740047567058,0.7948,2745.5,2745.0,3.64288]
[1740047568648,4.4372,2745.5,2745.0,3.64288]
[1740047569014,0.03691633,2745.4,2745.0,3.64288]
[1740047571171,4.4372,2745.5,2745.0,3.64288]
[1740047573069,3.67948633,2745.4,2744.9,3.6431]
[1740047573263,3.67948633,2745.4,2744.8,8.03369873]
[1740047573443,3.67948633,2745.4,2744.8,8.03370873]
[1740047574061,3.67948633,2745.4,2744.8,4.39053873]
[1740047574304,4.4718,2745.3,2744.8,4.39053873]
[1740047574561,0.03691633,2745.2,2744.8,4.39053873]
[1740047575368,4.4718,2745.3,2744.8,4.39053873]
[1740047577766,4.4718,2745.3,2744.8,8.03371873]
[1740047577976,4.4718,2745.3,2744.8,4.39053873]
[1740047578376,0.03691633,2745.2,2744.8,4.39053873]
[1740047580571,4.4718,2745.3,2744.8,4.39053873]
[1740047581823,3.67970633,2745.2,2744.8,3.64325]
[1740047582279,5.30191102,2745.0,2744.5,3.64362]
[1740047582466,0.03691633,2744.9,2744.6,0.261]
[1740047582880,0.7649,2744.8,2744.6,0.261]
[1740047584385,0.7649,2744.8,2744.4,3.64378]
[1740047585393,4.45715,2744.5,2744.3,8.186]
[1740047585592,4.49406633,2744.5,2744.3,8.186]
[1740047586691,4.45715,2744.5,2744.3,8.186]
[1740047587583,4.45715,2744.5,2744.1,0.261]
[1740047587987,13.34088,2744.5,2744.1,0.261]
[1740047588189,9.69715,2744.5,2744.1,0.261]
[1740047588900,3.68077633,2744.4,2743.7,3.64463]
[1740047589060,3.64404,2744.2,2743.7,3.64463]
[1740047589378,0.03691633,2744.1,2743.4,16.62093199]
[1740047589581,3.64471,2743.7,2743.6,0.71575306]
[1740047589798,8.88471,2743.7,2743.4,8.188]
[1740047590107,4.45145,2743.6,2743.4,8.188]
[1740047590607,0.8066,2743.6,2743.4,8.188]
[1740047592508,5.24,2743.7,2743.4,8.188]
[1740047592707,5.24,2743.7,2743.4,11.83308]
[1740047593076,5.24,2743.7,2743.4,8.188]
[1740047593470,5.24,2743.7,2743.6,4.43644]
[1740047593664,5.24,2743.7,2743.4,9.762052]
[1740047593859,5.24,2743.7,2743.4,10.513252]
[1740047594064,3.64444,2743.9,2743.4,10.513252]
[1740047594868,7.28897,2743.9,2743.4,10.513252]
[1740047595412,3.64444,2743.9,2743.4,10.513252]
[1740047596501,3.64444,2743.9,2743.4,10.774252]
[1740047596855,3.68135633,2743.9,2743.4,10.774252]
[1740047596981,3.64459,2743.8,2743.4,10.774252]
[1740047597182,3.68135633,2743.9,2743.4,10.774252]
[1740047597377,5.24,2744.0,2743.4,8.449]
[1740047597584,3.64468,2743.8,2743.4,8.449]
[1740047597884,0.03691633,2743.7,2743.4,8.449]
[1740047598107,4.39522,2743.7,2743.4,8.188]
[1740047598315,8.04006,2743.7,2743.4,8.188]
[1740047598622,3.64487,2743.6,2743.4,8.188]
[1740047598993,3.64497,2743.5,2743.4,8.188]
[1740047600121,5.24,2743.6,2743.4,8.188]
[1740047600323,5.24,2743.6,2743.4,8.963]
[1740047601035,5.24,2743.6,2743.4,8.188]
[1740047605834,3.64471,2743.7,2743.4,8.188]
[1740047606741,3.64471,2743.7,2743.2,4.4524]
[1740047607439,5.24,2743.8,2743.3,3.64517]
[1740047607640,5.24,2743.8,2743.3,3.68161965]
[1740047607939,8.88459,2743.8,2743.3,3.64517]
[1740047608573,5.24,2743.8,2743.5,3.64497]
[1740047608741,5.24,2743.8,2743.6,0.8108]
[1740047611836,3.64449,2743.9,2743.6,0.8108]
[1740047612761,6.07,2744.0,2743.6,0.8108]
[1740047612923,5.24,2744.0,2743.8,3.64456]
[1740047613126,3.64394,2744.3,2743.8,3.64456]
[1740047613330,3.64394,2744.3,2743.6,4.49203325]
[1740047613331,3.64394,2744.3,2743.6,4.45559]
[1740047613551,5.30447925,2744.3,2743.6,8.10036]
[1740047613738,5.30447925,2744.3,2743.6,4.45557]
[1740047614061,5.30447925,2744.3,2743.7,3.64468]
[1740047614265,1.66053925,2744.3,2743.6,1.55210314]
[1740047614569,5.30451925,2744.3,2743.7,3.64462]
[1740047615155,0.03691633,2744.2,2743.6,5.19692314]
[1740047615353,3.64415,2744.2,2743.6,8.84169314]
[1740047615672,3.68106633,2744.2,2743.6,5.19687314]
[1740047615855,0.03691633,2744.2,2743.6,5.19687314]
[1740047616054,3.64425,2744.1,2743.6,5.19687314]
[1740047616265,2.41283925,2743.9,2743.4,3.64502]
[1740047616581,6.05737925,2743.9,2743.5,0.261]
[1740047616736,4.39684,2743.9,2743.5,0.261]
[1740047616932,6.64431,2744.0,2743.5,3.90588]
[1740047617347,3.0,2744.0,2743.5,0.261]
[1740047617547,3.64458,2743.8,2743.5,0.261]
[1740047619671,3.68164633,2743.7,2743.5,0.261]
[1740047619874,0.03691633,2743.7,2743.5,0.261]
[1740047620284,0.84561633,2743.7,2743.5,0.261]
[1740047620578,3.64509,2743.5,2743.2,0.262]
[1740047620779,3.68200633,2743.5,2743.2,0.262]
[1740047621473,0.03691633,2743.5,2742.9,8.19]
[1740047621675,7.29041,2743.4,2742.9,8.19]
[1740047621981,0.7833,2743.3,2742.9,8.19]
[1740047623190,3.64555,2743.1,2742.9,8.19]
[1740047623382,3.64545,2743.2,2742.9,8.19]
[1740047623857,3.64564,2743.0,2742.9,8.19]
[1740047624183,4.42964,2743.0,2742.5,4.4672]
[1740047624381,8.07539,2743.0,2742.5,0.8209]
[1740047624569,4.42964,2743.0,2742.5,0.8209]
[1740047624770,3.64579,2742.9,2742.4,3.64643]
[1740047625082,3.64579,2742.9,2742.4,3.90843]
[1740047626251,9.66964,2743.0,2742.5,3.6463]
[1740047626581,6.024,2743.0,2742.5,3.64625]
[1740047627181,9.66965,2743.0,2742.4,7.55479]
[1740047627488,9.66965,2743.0,2742.4,3.90836]
[1740047627780,9.66965,2743.0,2742.4,3.90835]
[1740047628697,6.024,2743.0,2742.4,3.90835]
[1740047628987,6.024,2743.0,2742.7,3.64604]
[1740047629151,5.24,2743.0,2742.9,3.64577]
[1740047629545,3.0,2743.3,2743.0,3.6456]
[1740047629750,4.40156,2743.5,2742.9,3.64574]
[1740047630562,3.0,2743.4,2742.9,3.64574]
[1740047631085,0.7565,2743.5,2743.1,7.29086]
[1740047631380,0.7565,2743.5,2743.1,3.64543]
[1740047632366,0.7565,2743.5,2743.1,3.64542]
[1740047635280,4.39948,2743.2,2742.8,0.262]
[1740047635790,3.64557,2743.1,2742.8,0.262]
[1740047636002,0.03691633,2743.1,2742.8,0.262]
[1740047636894,0.03691633,2743.0,2742.8,0.262]
[1740047637092,4.43639633,2743.2,2742.8,0.262]
[1740047637411,3.64558,2743.1,2742.8,0.262]
[1740047637692,0.03691633,2743.0,2742.5,9.2473]
[1740047637897,0.03691633,2743.0,2742.5,12.10027]
[1740047638596,4.39948,2743.2,2742.5,11.83827]
[1740047638789,0.763,2742.9,2742.5,11.83827]
[1740047638990,0.763,2742.9,2742.5,8.192]
[1740047639302,0.763,2742.9,2742.6,3.6461]
[1740047639697,0.763,2742.9,2742.5,8.192]
[1740047639903,0.763,2742.9,2742.5,11.8383]
[1740047640607,0.763,2742.9,2742.6,3.64616]
[1740047643577,0.763,2742.9,2742.5,3.64625]
[1740047645021,0.03691633,2742.8,2742.5,3.64625]
[1740047645822,0.03691633,2742.8,2742.2,8.18727]
[1740047645970,3.64611,2742.7,2742.2,8.18727]
[1740047646176,0.8006,2742.5,2742.2,8.18727]
[1740047646606,0.8006,2742.5,2742.2,11.8339]
[1740047646803,0.03691633,2742.4,2742.2,8.18723]
[1740047648023,5.24,2742.4,2742.2,4.5406]
[1740047648686,4.43097,2742.3,2742.2,4.5406]
[1740047649679,4.43097,2742.3,2742.2,4.57500733]
[1740047650081,9.70788633,2742.3,2742.2,4.57500733]
[1740047650299,9.67097,2742.3,2742.2,4.57500733]
[1740047652509,9.67097,2742.3,2742.2,4.5406]
[1740047653017,12.67097,2742.3,2742.2,4.5406]
[1740047655287,16.09594673,2742.3,2742.2,4.5406]
[1740047655496,16.19594673,2742.3,2742.2,4.5406]
[1740047655713,12.77097,2742.3,2742.2,4.5406]
[1740047657242,16.19594673,2742.3,2742.2,4.5406]
[1740047657443,12.77097,2742.3,2742.2,4.5406]
[1740047657625,16.19594673,2742.3,2742.2,4.5406]
[1740047659135,12.77097,2742.3,2742.2,4.5406]
[1740047659648,12.67097,2742.3,2742.2,4.5406]
[1740047664928,12.67097,2742.3,2742.2,1e-05]
[1740047666659,7.47104,2742.1,2742.0,0.0150993]
[1740047666864,16.13601673,2742.1,2742.0,0.0150993]
[1740047667855,12.71104,2742.1,2742.0,0.0150993]
[1740047668265,12.71104,2742.1,2742.0,0.05177418]
[1740047668443,12.71104,2742.1,2742.0,0.0150993]
[1740047668638,8.24,2742.1,2742.0,0.0150993]
[1740047668965,5.24,2742.1,2742.0,0.81107418]
[1740047669925,8.88684,2742.1,2742.0,0.81107418]
[1740047670265,11.88684,2742.1,2742.0,0.81107418]
[1740047670841,11.78764,2742.1,2742.0,0.05177418]
[1740047671368,11.78764,2742.1,2742.0,0.0150993]
[1740047671568,15.21261673,2742.1,2742.0,0.0150993]
[1740047673575,16.03381673,2742.1,2742.0,0.0150993]
[1740047674974,12.60884,2742.1,2742.0,0.0150993]
[1740047675214,11.78764,2742.1,2742.0,0.0150993]
[1740047675506,11.78764,2742.1,2742.0,0.0516478]
[1740047676807,11.78764,2742.1,2742.0,0.0150993]
[1740047677001,11.78764,2742.1,2742.0,0.0516478]
[1740047677816,8.1408,2742.1,2742.0,0.0516478]
[1740047678745,11.78764,2742.1,2742.0,0.0516478]
[1740047679241,8.1408,2742.1,2742.0,0.0516478]
[1740047679532,15.99031673,2742.1,2742.0,0.0516478]
[1740047679908,15.99031673,2742.1,2742.0,0.0150993]
[1740047685139,15.99031673,2742.1,2742.0,9.3e-06]
[1740047687964,16.26587893,2742.1,2742.0,9.3e-06]
[1740047688339,12.8409022,2742.1,2742.0,9.3e-06]
[1740047688839,12.0632022,2742.1,2742.0,9.3e-06]
[1740047689039,15.21261673,2742.1,2742.0,9.3e-06]
[1740047689833,15.21261673,2742.1,2742.0,0.1000093]
[1740047690946,11.78764,2742.1,2742.0,0.1000093]
[1740047691146,8.78764,2742.1,2742.0,0.1000093]
[1740047691535,11.78764,2742.1,2742.0,0.1000093]
[1740047691764,11.78764,2742.1,2742.0,0.13703173]
[1740047692130,11.78764,2742.1,2742.0,0.1000093]
[1740047692539,11.78764,2742.1,2742.0,0.13703173]
[1740047693987,11.78764,2742.1,2742.0,0.1000093]
[1740047694432,12.58894,2742.1,2742.0,0.1000093]
[1740047694654,11.78764,2742.1,2742.0,0.1000093]
[1740047695092,11.78764,2742.1,2742.0,0.13677105]
[1740047697384,8.1408,2742.1,2742.0,0.13677105]
[1740047697778,8.1408,2742.1,2742.0,0.1000093]
[1740047697779,11.78764,2742.1,2742.0,0.1000093]
[1740047697957,11.78764,2742.1,2742.0,0.13677105]
[1740047698594,8.1408,2742.1,2742.0,0.13677105]
[1740047699091,5.1408,2742.1,2742.0,0.1000093]
[1740047699488,5.1408,2742.1,2742.0,0.13669996]
[1740047700876,5.1408,2742.1,2742.0,0.93929996]
[1740047701083,3.0,2742.4,2742.0,0.9026093]
[1740047701259,3.0,2742.4,2742.0,0.93918939]
[1740047701666,5.1408,2742.7,2742.1,3.64676]
[1740047701870,5.1408,2742.7,2742.3,3.64648]
[1740047702069,5.1408,2742.7,2742.4,0.7738]
[1740047702303,5.1408,2742.7,2742.4,4.45656109]
[1740047703023,3.0,2742.6,2742.4,4.45656109]
[1740047703227,3.0,2742.6,2742.5,0.8138]
[1740047703525,3.42497673,2743.2,2742.5,0.8138]
[1740047703526,5.1408,2742.9,2742.8,0.8138]
[1740047704025,5.1408,2742.9,2742.8,0.8498274]
[1740047714632,8.78657,2742.9,2742.8,0.8498274]